fUST/lending_fUST_20250921
["ID","MTS","AMOUNT","RATE_DAILY","PERIOD"]
[386658017,1758453046283,-480.0,0.00019452,2]
[386658019,1758453046293,-469.78305749,0.00019452,2]
[386658021,1758453046302,-886.06,0.00019452,2]
[386658023,1758453046310,-967.35,0.00019452,2]
[386658025,1758453046320,-480.0,0.00019452,2]
[386658027,1758453046329,-480.0,0.00019452,2]
[386658029,1758453046338,-480.0,0.00019452,2]
[386658031,1758453046347,-480.0,0.00019452,2]
[386658033,1758453046356,-480.0,0.00019452,2]
[386658035,1758453046365,-480.0,0.00019452,2]
[386658037,1758453046374,-488.61856435,0.00019452,2]
[386658039,1758453046383,-494.12268187,0.00019452,2]
[386658041,1758453046392,-480.0,0.00019452,2]
[386658043,1758453046401,-480.0,0.00019452,2]
[386658045,1758453046410,-544.25,0.00019452,2]
[386658047,1758453046419,-480.0,0.00019452,2]
[386658049,1758453046431,-480.0,0.00019452,2]
[386658051,1758453046441,-480.0,0.00019452,2]
[386658053,1758453046450,-480.0,0.00019452,2]
[386658055,1758453046459,-2051.9,0.00019452,2]
[386658057,1758453046468,-480.0,0.00019452,2]
[386658059,1758453046477,-500.0,0.00019473,2]
[386658061,1758453046486,-500.0,0.00019473,2]
[386658063,1758453046496,-501.50140071,0.00019473,2]
[386658065,1758453046505,-640.15464926,0.00019473,2]
[386658067,1758453046514,-500.0,0.00019473,2]
[386658069,1758453046524,-500.0,0.00019473,2]
[386658071,1758453046533,-500.0,0.00019473,2]
[386658073,1758453046542,-500.0,0.00019473,2]
[386658075,1758453046551,-500.0,0.00019473,2]
[386658076,1758453046560,-500.0,0.00019473,2]
[386658078,1758453046569,-500.0,0.00019473,2]
[386658080,1758453046578,-505.24288065,0.00019473,2]
[386658082,1758453046587,-500.0,0.00019473,2]
[386658084,1758453046596,-500.0,0.00019473,2]
[386658086,1758453046605,-500.0,0.00019473,2]
[386658088,1758453046614,-500.0,0.00019473,2]
[386658090,1758453046623,-500.0,0.00019473,2]
[386658092,1758453046632,-511.0021489,0.00019473,2]
[386658094,1758453046641,-207.07615652,0.00019473,2]
[386658096,1758453046650,-500.0,0.00019473,2]
[386658098,1758453046659,-500.0,0.00019473,2]
[386658100,1758453046669,-500.0,0.00019473,2]
[386658102,1758453046679,-4030.42,0.00019529,2]
[386658104,1758453046688,-184.70669496,0.00019608,2]
[386658106,1758453046697,-500.0,0.00019723,2]
[386658108,1758453046707,-480.0,0.00019726,2]
[386658110,1758453046716,-480.0,0.00019726,2]
[386658112,1758453046725,-196.4737762,0.00019726,2]
[386658114,1758453046735,-480.0,0.00019726,2]
[386658116,1758453046744,-480.0,0.00019726,2]
[386658118,1758453046754,-480.0,0.00019726,2]
[386658120,1758453046763,-480.0,0.00019726,2]
[386658122,1758453046772,-480.0,0.00019726,2]
[386658124,1758453046781,-480.0,0.00019726,2]
[386658126,1758453046790,-480.0,0.00019726,2]
[386658128,1758453046800,-480.0,0.00019726,2]
[386658130,1758453046810,-480.0,0.00019726,2]
[386658132,1758453046819,-480.0,0.00019726,2]
[386658134,1758453046828,-480.0,0.00019726,2]
[386658136,1758453046838,-480.0,0.00019726,2]
[386658138,1758453046848,-480.0,0.00019726,2]
[386658140,1758453046857,-480.0,0.00019726,2]
[386658142,1758453046867,-483.35898547,0.00019726,2]
[386658144,1758453046876,-480.0,0.00019726,2]
[386658146,1758453046885,-480.0,0.00019726,2]
[386658148,1758453046895,-480.0,0.00019726,2]
[386658150,1758453046904,-480.0,0.00019726,2]
[386658152,1758453046914,-480.0,0.00019726,2]
[386658154,1758453046929,-480.0,0.00019726,2]
[386658156,1758453046938,-480.0,0.00019726,2]
[386658158,1758453046948,-480.0,0.00019726,2]
[386658160,1758453046957,-480.0,0.00019726,2]
[386658162,1758453046967,-480.0,0.00019726,2]
[386658164,1758453046977,-480.0,0.00019726,2]
[386658166,1758453046987,-480.0,0.00019726,2]
[386658168,1758453046997,-480.0,0.00019726,2]
[386658170,1758453047008,-480.0,0.00019726,2]
[386658172,1758453047018,-480.0,0.00019726,2]
[386658174,1758453047027,-480.0,0.00019726,2]
[386658176,1758453047037,-480.0,0.00019726,2]
[386658178,1758453047046,-480.0,0.00019726,2]
[386658180,1758453047055,-480.0,0.00019726,2]
[386658182,1758453047065,-480.0,0.00019726,2]
[386658185,1758453047074,-480.0,0.00019726,2]
[386658187,1758453047084,-480.0,0.00019726,2]
[386658189,1758453047094,-601.41160205,0.00019726,2]
[386658191,1758453047103,-480.0,0.00019726,2]
[386658193,1758453047112,-480.0,0.00019726,2]
[386658195,1758453047121,-480.0,0.00019726,2]
[386658197,1758453047131,-480.0,0.00019726,2]
[386658199,1758453047140,-480.0,0.00019726,2]
[386658201,1758453047149,-8167.38,0.00019726,2]
[386658203,1758453047159,-480.0,0.00019726,2]
[386658205,1758453047167,-480.0,0.00019726,2]
[386658207,1758453047177,-483.10527174,0.00019726,2]
[386658209,1758453047187,-362.50584046,0.00019726,2]
[386658211,1758453047196,-480.0,0.00019726,2]
[386658213,1758453047205,-480.0,0.00019726,2]
[386658215,1758453047214,-515.02431158,0.00019726,2]
[386658217,1758453047223,-480.0,0.00019726,2]
[386658219,1758453047233,-480.0,0.00019726,2]
[386658221,1758453047242,-480.0,0.00019726,2]
[386658223,1758453047251,-553.3194877,0.00019726,2]
[386658225,1758453047260,-490.24627199,0.00019726,2]
[386658227,1758453047269,-480.0,0.00019726,2]
[386658229,1758453047278,-480.0,0.00019726,2]
[386658231,1758453047287,-480.0,0.00019726,2]
[386658233,1758453047297,-480.0,0.00019726,2]
[386658235,1758453047306,-480.0,0.00019726,2]
[386658237,1758453047315,-406.00826311,0.00019726,2]
[386658239,1758453047324,-483.9995486,0.00019726,2]
[386658241,1758453047333,-480.0,0.00019726,2]
[386658243,1758453047343,-480.0,0.00019726,2]
[386658245,1758453047352,-480.0,0.00019726,2]
[386658247,1758453047361,-480.0,0.00019726,2]
[386658249,1758453047370,-480.0,0.00019726,2]
[386658251,1758453047379,-480.0,0.00019726,2]
[386658253,1758453047388,-812.51,0.00019726,2]
[386658255,1758453047398,-480.0,0.00019726,2]
[386658257,1758453047408,-565.65795806,0.00019726,2]
[386658259,1758453047417,-480.0,0.00019726,2]
[386658261,1758453047426,-480.0,0.00019726,2]
[386658263,1758453047435,-480.0,0.00019726,2]
[386658265,1758453047445,-512.27405801,0.00019726,2]
[386658267,1758453047454,-480.0,0.00019726,2]
[386658269,1758453047463,-480.0,0.00019726,2]
[386658271,1758453047472,-480.0,0.00019726,2]
[386658273,1758453047481,-480.0,0.00019726,2]
[386658275,1758453047490,-480.0,0.00019726,2]
[386658277,1758453047499,-481.5051276,0.00019726,2]
[386658279,1758453047508,-480.0,0.00019726,2]
[386658281,1758453047519,-188.07905388,0.00019726,2]
[386658283,1758453047528,-555.74,0.00019726,2]
[386658285,1758453047538,-1597.06,0.00019726,2]
[386658287,1758453047547,-480.0,0.00019726,2]
[386658289,1758453047556,-527.95415741,0.00019726,2]
[386658291,1758453047565,-3050.76,0.00019726,2]
[386658293,1758453047574,-480.0,0.00019726,2]
[386658295,1758453047583,-480.0,0.00019726,2]
[386658297,1758453047592,-480.0,0.00019726,2]
[386658299,1758453047601,-480.0,0.00019726,2]
[386658301,1758453047610,-480.0,0.00019726,2]
[386658302,1758453047619,-480.0,0.00019726,2]
[386658305,1758453047630,-964.98,0.00019726,2]
[386658307,1758453047640,-480.0,0.00019726,2]
[386658309,1758453047649,-480.0,0.00019726,2]
[386658311,1758453047658,-968.95,0.00019726,2]
[386658312,1758453047667,-480.0,0.00019726,2]
[386658314,1758453047676,-497.84069144,0.00019726,2]
[386658316,1758453047686,-480.0,0.00019726,2]
[386658318,1758453047695,-480.0,0.00019726,2]
[386658320,1758453047705,-306.60501693,0.00019726,2]
[386658322,1758453047714,-480.0,0.00019726,2]
[386658324,1758453047723,-480.0,0.00019726,2]
[386658326,1758453047733,-878.63,0.00019726,2]
[386658328,1758453047742,-480.0,0.00019726,2]
[386658330,1758453047751,-480.0,0.00019726,2]
[386658332,1758453047761,-480.0,0.00019726,2]
[386658334,1758453047770,-558.36,0.00019726,2]
[386658336,1758453047780,-480.0,0.00019726,2]
[386658339,1758453047790,-1103.49,0.00019726,2]
[386658340,1758453047799,-789.27,0.00019726,2]
[386658343,1758453047808,-480.0,0.00019726,2]
[386658345,1758453047818,-480.0,0.00019726,2]
[386658347,1758453047828,-480.0,0.00019726,2]
[386658349,1758453047837,-542.29824064,0.00019726,2]
[386658351,1758453047848,-480.0,0.00019726,2]
[386658353,1758453047858,-480.0,0.00019726,2]
[386658355,1758453047867,-480.0,0.00019726,2]
[386658357,1758453047875,-467.52998389,0.00019726,2]
[386658359,1758453047884,-480.0,0.00019726,2]
[386658361,1758453047894,-480.0,0.00019726,2]
[386658363,1758453047903,-480.0,0.00019726,2]
[386658379,1758453048043,-480.0,0.00019726,2]
[386658381,1758453048053,-504.05339939,0.00019726,2]
[386658383,1758453048063,-1887.16,0.00019726,2]
[386658385,1758453048073,-480.0,0.00019726,2]
[386658387,1758453048082,-480.0,0.00019726,2]
[386658389,1758453048092,-480.0,0.00019726,2]
[386658391,1758453048102,-480.0,0.00019726,2]
[386658393,1758453048112,-480.0,0.00019726,2]
[386658395,1758453048121,-480.0,0.00019726,2]
[386658397,1758453048131,-480.0,0.00019726,2]
[386658399,1758453048141,-480.0,0.00019726,2]
[386658401,1758453048150,-787.45,0.00019726,2]
[386658403,1758453048160,-480.0,0.00019726,2]
[386658405,1758453048170,-480.0,0.00019726,2]
[386658407,1758453048179,-480.0,0.00019726,2]
[386658409,1758453048189,-480.0,0.00019726,2]
[386658411,1758453048199,-1368.44,0.00019726,2]
[386658413,1758453048208,-480.0,0.00019726,2]
[386658415,1758453048218,-480.0,0.00019726,2]
[386658417,1758453048227,-480.0,0.00019726,2]
[386658419,1758453048237,-480.0,0.00019726,2]
[386658421,1758453048246,-480.0,0.00019726,2]
[386658423,1758453048256,-480.0,0.00019726,2]
[386658425,1758453048265,-480.0,0.00019726,2]
[386658427,1758453048275,-480.0,0.00019726,2]
[386658429,1758453048285,-480.0,0.00019726,2]
[386658431,1758453048294,-480.0,0.00019726,2]
[386658433,1758453048304,-608.18,0.00019726,2]
[386658436,1758453048314,-480.0,0.00019726,2]
[386658438,1758453048323,-480.0,0.00019726,2]
[386658440,1758453048332,-259.37439466,0.00019726,2]
[386658442,1758453048342,-480.0,0.00019726,2]
[386658444,1758453048351,-480.0,0.00019726,2]
[386658446,1758453048361,-855.51,0.00019726,2]
[386658448,1758453048372,-480.0,0.00019726,2]
[386658450,1758453048381,-480.0,0.00019726,2]
[386658452,1758453048391,-912.57,0.00019726,2]
[386658454,1758453048400,-480.0,0.00019726,2]
[386658456,1758453048411,-480.0,0.00019726,2]
[386658458,1758453048420,-498.23435756,0.00019726,2]
[386658460,1758453048430,-971.61,0.00019726,2]
[386658462,1758453048440,-480.0,0.00019726,2]
[386658464,1758453048450,-886.06,0.00019726,2]
[386658466,1758453048459,-480.0,0.00019726,2]
[386658468,1758453048469,-967.35,0.00019726,2]
[386658470,1758453048479,-480.0,0.00019726,2]
[386658472,1758453048488,-480.0,0.00019726,2]
[386658474,1758453048498,-480.0,0.00019726,2]
[386658476,1758453048507,-480.0,0.00019726,2]
[386658478,1758453048517,-480.0,0.00019726,2]
[386658480,1758453048527,-480.0,0.00019726,2]
[386658482,1758453048536,-480.0,0.00019726,2]
[386658484,1758453048546,-544.25,0.00019726,2]
[386658486,1758453048555,-480.0,0.00019726,2]
[386658488,1758453048564,-480.0,0.00019726,2]
[386658490,1758453048573,-480.0,0.00019726,2]
[386658492,1758453048583,-2051.9,0.00019726,2]
[386658494,1758453048593,-384.104,0.00019748,2]
[386658496,1758453048603,-184.70669496,0.00019873,2]
[386658498,1758453048613,-12295.41489803,0.000199,2]
[386658500,1758453048623,-273.0,0.00019973,3]
[386658502,1758453048632,-160.0,0.00019975,2]
[386658504,1758453048643,-5087.95488639,0.0001999,2]
[386658506,1758453048653,-431.62687345,0.00019997,2]
[386658508,1758453048663,-480.0,0.0002,2]
[386658510,1758453048673,-480.0,0.0002,2]
[386658512,1758453048683,-488.78490244,0.0002,2]
[386658514,1758453048693,-566.85,0.0002,2]
[386658516,1758453048702,-480.0,0.0002,2]
[386658518,1758453048712,-480.0,0.0002,2]
[386658520,1758453048722,-385.01722467,0.0002,2]
[386658522,1758453048731,-480.0,0.0002,2]
[386658524,1758453048741,-480.0,0.0002,2]
[386658526,1758453048751,-480.0,0.0002,2]
[386658528,1758453048760,-480.0,0.0002,2]
[386658530,1758453048770,-480.0,0.0002,2]
[386658532,1758453048780,-480.0,0.0002,2]
[386658534,1758453048790,-486.69221446,0.0002,2]
[386658536,1758453048799,-480.0,0.0002,2]
[386658538,1758453048807,-480.0,0.0002,2]
[386658540,1758453048816,-539.23417234,0.0002,2]
[386658542,1758453048825,-480.0,0.0002,2]
[386658544,1758453048834,-480.0,0.0002,2]
[386658546,1758453048844,-403.80446147,0.0002,2]
[386658548,1758453048854,-463.23459873,0.0002,2]
[386658550,1758453048863,-480.0,0.0002,2]
[386658552,1758453048872,-480.0,0.0002,2]
[386658554,1758453048880,-480.0,0.0002,2]
[386658556,1758453048889,-480.0,0.0002,2]
[386658558,1758453048898,-480.0,0.0002,2]
[386658560,1758453048908,-8167.38,0.0002,2]
[386658562,1758453048920,-480.0,0.0002,2]
[386658564,1758453048931,-480.0,0.0002,2]
[386658566,1758453048941,-480.0,0.0002,2]
[386658568,1758453048950,-480.0,0.0002,2]
[386658570,1758453048960,-496.58980733,0.0002,2]
[386658572,1758453048971,-480.0,0.0002,2]
[386658574,1758453048980,-480.0,0.0002,2]
[386658576,1758453048990,-480.0,0.0002,2]
[386658578,1758453049000,-480.0,0.0002,2]
[386658580,1758453049010,-480.0,0.0002,2]
[386658582,1758453049019,-812.51,0.0002,2]
[386658584,1758453049028,-480.0,0.0002,2]
[386658586,1758453049038,-480.0,0.0002,2]
[386658588,1758453049048,-480.0,0.0002,2]
[386658590,1758453049058,-480.0,0.0002,2]
[386658592,1758453049067,-480.0,0.0002,2]
[386658594,1758453049076,-480.0,0.0002,2]
[386658596,1758453049086,-480.0,0.0002,2]
[386658598,1758453049095,-150.0,0.0002,10]
[386658600,1758453049105,-480.0,0.0002,2]
[386658602,1758453049118,-555.74,0.0002,2]
[386658604,1758453049128,-1597.06,0.0002,2]
[386658606,1758453049137,-340.27229525,0.0002,2]
[386658608,1758453049147,-3050.76,0.0002,2]
[386658610,1758453049156,-480.0,0.0002,2]
[386658612,1758453049166,-480.0,0.0002,2]
[386658614,1758453049176,-480.0,0.0002,2]
[386658616,1758453049186,-480.0,0.0002,2]
[386658618,1758453049196,-480.0,0.0002,2]
[386658620,1758453049206,-964.98,0.0002,2]
[386658622,1758453049215,-968.95,0.0002,2]
[386658624,1758453049224,-480.0,0.0002,2]
[386658626,1758453049233,-480.0,0.0002,2]
[386658628,1758453049242,-480.0,0.0002,2]
[386658630,1758453049252,-878.63,0.0002,2]
[386658632,1758453049260,-480.0,0.0002,2]
[386658634,1758453049270,-558.36,0.0002,2]
[386658636,1758453049279,-310.75772216,0.0002,2]
[386658638,1758453049288,-1103.49,0.0002,2]
[386658640,1758453049298,-789.27,0.0002,2]
[386658642,1758453049308,-480.0,0.0002,2]
[386658644,1758453049318,-480.0,0.0002,2]
[386658646,1758453049327,-480.0,0.0002,2]
[386658648,1758453049336,-480.0,0.0002,2]
[386658650,1758453049346,-480.0,0.0002,2]
[386658652,1758453049356,-355.05,0.0002,2]
[386658654,1758453049365,-480.0,0.0002,2]
[386658656,1758453049375,-480.0,0.0002,2]
[386658658,1758453049384,-480.0,0.0002,2]
[386658660,1758453049394,-1887.16,0.0002,2]
[386658662,1758453049403,-480.0,0.0002,2]
[386658664,1758453049414,-480.0,0.0002,2]
[386658666,1758453049423,-480.0,0.0002,2]
[386658668,1758453049433,-480.0,0.0002,2]
[386658670,1758453049443,-480.0,0.0002,2]
[386658672,1758453049452,-787.45,0.0002,2]
[386658674,1758453049461,-480.0,0.0002,2]
[386658676,1758453049471,-480.0,0.0002,2]
[386658678,1758453049480,-480.0,0.0002,2]
[386658680,1758453049490,-480.0,0.0002,2]
[386658682,1758453049499,-1368.44,0.0002,2]
[386658684,1758453049511,-480.0,0.0002,2]
[386658686,1758453049519,-480.0,0.0002,2]
[386658688,1758453049528,-480.0,0.0002,2]
[386658690,1758453049537,-480.0,0.0002,2]
[386658692,1758453049546,-460.558345,0.0002,2]
[386658694,1758453049556,-480.0,0.0002,2]
[386658696,1758453049566,-480.0,0.0002,2]
[386658698,1758453049576,-480.0,0.0002,2]
[386658700,1758453049586,-480.0,0.0002,2]
[386658702,1758453049596,-608.18,0.0002,2]
[386658704,1758453049605,-480.0,0.0002,2]
[386658706,1758453049614,-480.0,0.0002,2]
[386658708,1758453049624,-480.0,0.0002,2]
[386658710,1758453049633,-501.39005476,0.0002,2]
[386658712,1758453049643,-855.51,0.0002,2]
[386658714,1758453049652,-480.0,0.0002,2]
[386658716,1758453049662,-480.0,0.0002,2]
[386658718,1758453049671,-912.57,0.0002,2]
[386658720,1758453049681,-480.0,0.0002,2]
[386658722,1758453049691,-971.61,0.0002,2]
[386658723,1758453049699,-480.0,0.0002,2]
[386658725,1758453049709,-886.06,0.0002,2]
[386658727,1758453049719,-480.0,0.0002,2]
[386658729,1758453049729,-967.35,0.0002,2]
[386658732,1758453049738,-4000.0,0.0002,4]
[386658734,1758453049748,-480.0,0.0002,2]
[386658736,1758453049757,-480.0,0.0002,2]
[386658738,1758453049767,-480.0,0.0002,2]
[386658740,1758453049776,-480.0,0.0002,2]
[386658741,1758453049785,-544.25,0.0002,2]
[386658743,1758453049795,-480.0,0.0002,2]
[386658745,1758453049804,-480.0,0.0002,2]
[386658747,1758453049813,-399.31347109,0.0002,2]
[386658749,1758453049823,-2051.9,0.0002,2]
[386658751,1758453049832,-506.38224766,0.00020021,2]
[386658753,1758453049842,-1000.0,0.00020021,2]
[386658755,1758453049851,-280.08156896,0.00020021,2]
[386658757,1758453049861,-1000.0,0.00020021,2]
[386658759,1758453049870,-1000.0,0.00020021,2]
[386658761,1758453049880,-1000.0,0.00020021,2]
[386658763,1758453049889,-1000.0,0.00020021,2]
[386658765,1758453049898,-1000.0,0.00020021,2]
[386658767,1758453049907,-279.973145,0.00020021,2]
[386658769,1758453049916,-1008.72805618,0.00020021,2]
[386658771,1758453049925,-1000.0,0.00020021,2]
[386658773,1758453049935,-1000.0,0.00020021,2]
[386658775,1758453049944,-500.0,0.00020021,2]
[386658777,1758453049953,-1000.0,0.00020021,2]
[386658779,1758453049963,-1000.0,0.00020021,2]
[386658781,1758453049972,-179.78425889,0.00020036,2]
[386658783,1758453049981,-480.0,0.00020273,2]
[386658785,1758453049991,-480.0,0.00020273,2]
[386658787,1758453050000,-480.0,0.00020273,2]
[386658789,1758453050010,-480.0,0.00020273,2]
[386658791,1758453050019,-480.0,0.00020273,2]
[386658793,1758453050028,-480.0,0.00020273,2]
[386658795,1758453050037,-480.0,0.00020273,2]
[386658797,1758453050047,-480.0,0.00020273,2]
[386658799,1758453050056,-303.92239101,0.00020273,2]
[386658800,1758453050066,-480.0,0.00020273,2]
[386658802,1758453050075,-480.0,0.00020273,2]
[386658804,1758453050085,-480.0,0.00020273,2]
[386658806,1758453050094,-480.0,0.00020273,2]
[386658808,1758453050103,-480.0,0.00020273,2]
[386658810,1758453050113,-480.0,0.00020273,2]
[386658812,1758453050122,-8167.38,0.00020273,2]
[386658814,1758453050131,-480.0,0.00020273,2]
[386658816,1758453050141,-480.0,0.00020273,2]
[386658818,1758453050150,-480.0,0.00020273,2]
[386658820,1758453050160,-480.0,0.00020273,2]
[386658822,1758453050169,-480.0,0.00020273,2]
[386658824,1758453050179,-480.0,0.00020273,2]
[386658826,1758453050189,-480.0,0.00020273,2]
[386658828,1758453050198,-480.0,0.00020273,2]
[386658830,1758453050207,-480.0,0.00020273,2]
[386658832,1758453050216,-487.61215009,0.00020273,2]
[386658834,1758453050226,-560.08372906,0.00020273,2]
[386658836,1758453050235,-252.86551043,0.00020273,2]
[386658838,1758453050245,-555.74,0.00020273,2]
[386658840,1758453050254,-1597.06,0.00020273,2]
[386658842,1758453050263,-480.0,0.00020273,2]
[386658844,1758453050273,-3050.76,0.00020273,2]
[386658846,1758453050282,-480.0,0.00020273,2]
[386658848,1758453050292,-480.0,0.00020273,2]
[386658850,1758453050302,-480.0,0.00020273,2]
[386658852,1758453050311,-964.98,0.00020273,2]
[386658853,1758453050320,-968.95,0.00020273,2]
[386658855,1758453050330,-480.0,0.00020273,2]
[386658857,1758453050340,-480.0,0.00020273,2]
[386658859,1758453050348,-878.63,0.00020273,2]
[386658861,1758453050358,-505.46915603,0.00020273,2]
[386658863,1758453050368,-558.36,0.00020273,2]
[386658865,1758453050377,-1103.49,0.00020273,2]
[386658867,1758453050386,-789.27,0.00020273,2]
[386658869,1758453050395,-480.0,0.00020273,2]
[386658871,1758453050404,-480.0,0.00020273,2]
[386658873,1758453050415,-480.0,0.00020273,2]
[386658878,1758453050457,-178.34176478,0.00020273,2]
[386658880,1758453050466,-214.65275827,0.00020273,2]
[386658882,1758453050475,-480.0,0.00020273,2]
[386658884,1758453050484,-480.0,0.00020273,2]
[386658886,1758453050493,-480.0,0.00020273,2]
[386658888,1758453050502,-1887.16,0.00020273,2]
[386658890,1758453050511,-480.0,0.00020273,2]
[386658892,1758453050520,-480.0,0.00020273,2]
[386658894,1758453050529,-480.0,0.00020273,2]
[386658896,1758453050538,-499.4,0.00020273,2]
[386658898,1758453050548,-480.0,0.00020273,2]
[386658900,1758453050557,-787.45,0.00020273,2]
[386658901,1758453050566,-480.0,0.00020273,2]
[386658903,1758453050575,-480.0,0.00020273,2]
[386658905,1758453050584,-480.0,0.00020273,2]
[386658907,1758453050593,-480.0,0.00020273,2]
[386658909,1758453050602,-1368.44,0.00020273,2]
[386658911,1758453050611,-480.0,0.00020273,2]
[386658913,1758453050620,-480.0,0.00020273,2]
[386658915,1758453050629,-186.8897468,0.00020273,2]
[386658917,1758453050638,-480.0,0.00020273,2]
[386658919,1758453050648,-480.0,0.00020273,2]
[386658921,1758453050657,-480.0,0.00020273,2]
[386658923,1758453050666,-480.0,0.00020273,2]
[386658925,1758453050676,-480.0,0.00020273,2]
[386658927,1758453050685,-608.18,0.00020273,2]
[386658929,1758453050694,-480.0,0.00020273,2]
[386658931,1758453050704,-480.0,0.00020273,2]
[386658933,1758453050713,-480.0,0.00020273,2]
[386658935,1758453050723,-855.51,0.00020273,2]
[386658936,1758453050732,-480.0,0.00020273,2]
[386658937,1758453050741,-480.0,0.00020273,2]
[386658938,1758453050751,-912.57,0.00020273,2]
[386658939,1758453050760,-971.61,0.00020273,2]
[386658940,1758453050769,-886.06,0.00020273,2]
[386658941,1758453050779,-480.0,0.00020273,2]
[386658942,1758453050788,-967.35,0.00020273,2]
[386658943,1758453050797,-480.0,0.00020273,2]
[386658944,1758453050806,-480.0,0.00020273,2]
[386658945,1758453050815,-480.0,0.00020273,2]
[386658946,1758453050825,-480.0,0.00020273,2]
[386658947,1758453050834,-544.25,0.00020273,2]
[386658948,1758453050843,-480.0,0.00020273,2]
[386658949,1758453050853,-225.9891792,0.00020323,2]
[386658950,1758453050862,-1012.8132345,0.00020323,2]
[386658951,1758453050871,-3194.9249512,0.00020323,2]
[386658952,1758453050880,-978.0,0.00020326,2]
[386658953,1758453050889,-634.0,0.00020326,2]
[386658954,1758453050898,-2158.0,0.00020326,2]
[386658955,1758453050907,-5000.0,0.00020375,2]
[386658956,1758453050918,-8060.84,0.00020459,2]
[386658957,1758453050932,-260.0,0.00020523,2]
[386658959,1758453050941,-1018.9,0.00020538,3]
[386658961,1758453050951,-509.44,0.00020538,3]
[386658962,1758453050960,-1942.22,0.00020538,3]
[386658964,1758453050970,-1720.1,0.00020538,3]
[386658966,1758453050980,-860.04,0.00020538,3]
[386658968,1758453050989,-430.02,0.00020538,3]
[386658970,1758453050999,-417.15472785,0.00020538,3]
[386658972,1758453051008,-160.0,0.00020538,3]
[386658974,1758453051018,-480.0,0.00020547,2]
[386658976,1758453051027,-222.53119266,0.00020547,2]
[386658978,1758453051036,-480.0,0.00020547,2]
[386658980,1758453051046,-480.0,0.00020547,2]
[386658982,1758453051055,-480.0,0.00020547,2]
[386658984,1758453051065,-480.0,0.00020547,2]
[386658986,1758453051074,-480.0,0.00020547,2]
[386658988,1758453051083,-480.0,0.00020547,2]
[386658989,1758453051093,-480.0,0.00020547,2]
[386658991,1758453051102,-480.0,0.00020547,2]
[386658993,1758453051112,-480.0,0.00020547,2]
[386658995,1758453051121,-480.0,0.00020547,2]
[386658997,1758453051130,-8167.38,0.00020547,2]
[386658999,1758453051140,-480.0,0.00020547,2]
[386659001,1758453051149,-480.0,0.00020547,2]
[386659003,1758453051158,-555.81649541,0.00020547,2]
[386659005,1758453051167,-480.0,0.00020547,2]